[Event "1000GM Winter IM Norm-2 2024"]
[Site "Sunnyvale/"]
[Date "2024.01.03"]
[Round "2.7"]
[White "Bhatta, Rohit"]
[Black "Dominguez Aguilar, Guillermo"]
[Result "0-1"]
[ECO "A62"]
[WhiteElo "1867"]
[BlackElo "2319"]
[Annotator "RC"]
[PlyCount "102"]
[EventDate "2023.12.14"]
[EventType "schev"]
[EventCountry "USA"]
[SourceTitle "playchess.com"]
[Source "ChessBase"]
[SourceQuality "1"]
[TimeControl "5400+30"]

1. d4 {[%emt 0:00:04]} Nf6 {[%emt 0:01:13]} 2. c4 {[%emt 0:00:06]} c5 {[%emt 0:01:20]} 3. d5 {[%emt 0:00:05]} e6 {[%emt 0:00:10]} 4. Nc3 {[%emt 0:00:20]} exd5 {[%emt 0:00:15]} 5. cxd5 {[%emt 0:00:09]} d6 {[%emt 0:00:05]} 6. g3 {[%emt 0:00:31]} g6 {[%emt 0:01:15]} 7. Bg2 {[%emt 0:00:31]} Bg7 {[%emt 0:00:02]} 8. Nf3 {[%emt 0:00:17]} O-O {[%emt 0:00:13]} 9. O-O {[%emt 0:00:08]} Re8 {[%emt 0:00:17]} 10. Bf4 {[%emt 0:00:33]} Na6 {[%emt 0:01:09]} 11. Re1 {[%emt 0:01:30]} h6 {[%emt 0:01:29]} 12. e4 {[%emt 0:09:53]} g5 {[%emt 0:00:28]} 13. Bd2 {[%emt 0:11:59]} Nb4 {[%emt 0:02:50]} 14. Bc1 {[%emt 0:12:21]} c4 {[%emt 0:02:00]} 15. Bf1 {[%emt 0:16:52]} Bg4 {[%emt 0:04:42]} 16. Rb1 {[%emt 0:04:51]} Rc8 {[%emt 0:06:07]} 17. a3 {[%emt 0:02:25]} Bxf3 {[%emt 0:09:12]} 18. Qxf3 {[%emt 0:00:10]} Nc2 {[%emt 0:02:12]} 19. Rd1 {[%emt 0:01:24]} Qb6 {[%emt 0:00:51]} 20. Be3 {[%emt 0:12:12]} Nxe3 {[%emt 0:00:48]} 21. fxe3 {[%emt 0:00:18]} Nd7 {[%emt 0:00:14]} 22. Bh3 {[%emt 0:02:36]} Ne5 {[%emt 0:00:14]} 23. Qe2 {[%emt 0:01:36]} Rc7 {[%emt 0:01:16]} 24. Bf5 {[%emt 0:02:13]} Bf6 {[%emt 0:01:12]} 25. Rf1 {[%emt 0:01:39]} Kg7 {[%emt 0:00:21]} 26. Kg2 {[%emt 0:05:39]} Rh8 {[%emt 0:01:12]} 27. h3 {[%emt 0:03:11]} a6 {[%emt 0:01:22]} 28. Bg4 {[%emt 0:02:21]} Bd8 {[%emt 0:01:17]} 29. Bh5 {[%emt 0:00:52]} Qc5 {[%emt 0:03:58]} 30. Qd2 {[%emt 0:00:52]} Re7 {[%emt 0:03:18]} 31. Ne2 {[%emt 0:01:06]} Ba5 {[%emt 0:01:03]} 32. Qd1 {[%emt 0:02:18]} Qxe3 {[%emt 0:00:31]} 33. Nd4 {[%emt 0:00:31]} Qxe4+ {[%emt 0:00:53]} 34. Kh2 {[%emt 0:01:01]} Rd7 {[%emt 0:01:00]} 35. Rf2 {[%emt 0:03:22]} Qd3 {[%emt 0:00:40]} 36. Qg1 {[%emt 0:00:39]} Kg8 {[%emt 0:01:14]} 37. Rd1 {[%emt 0:00:24]} Qe4 {[%emt 0:00:10]} 38. Re2 {[%emt 0:00:44]} Qh7 {[%emt 0:00:31]} 39. Qf1 {[%emt 0:00:30]} Qg7 {[%emt 0:00:56]} 40. Nf5 {[%emt 0:00:25]} Qf6 {[%emt 0:00:08]} 41. Rf2 {[%emt 0:01:11]} Bb6 {[%emt 0:00:27]} 42. Nd4 {[%emt 0:00:09]} Qd8 {[%emt 0:00:46]} 43. Rf6 {[%emt 0:00:35]} Bxd4 {[%emt 0:00:39]} 44. Rxd4 {[%emt 0:00:05]} Kg7 {[%emt 0:00:17]} 45. Rf5 {[%emt 0:00:48]} Re8 {[%emt 0:00:29]} 46. Rd2 {[%emt 0:00:33]} Qa5 {[%emt 0:01:29]} 47. Rdf2 {[%emt 0:00:27]} Qxd5 {[%emt 0:00:11]} 48. Rf6 {[%emt 0:01:06]} Ree7 {[%emt 0:00:41]} 49. Bg4 {[%emt 0:00:14]} Rc7 {[%emt 0:00:25]} 50. Rxh6 {[%emt 0:00:55]} Kxh6 {[%emt 0:00:26]} 51. Rf6+ {[%emt 0:00:05]} Kg7 {[%emt 0:00:08]} 0-1

[Event "1000GM Winter IM Norm-2 2024"]
[Site "Sunnyvale/"]
[Date "2024.01.03"]
[Round "2.8"]
[White "Stevens, Adam B"]
[Black "Ramirez, Carlos"]
[Result "1/2-1/2"]
[ECO "D27"]
[WhiteElo "1878"]
[BlackElo "2190"]
[Annotator "RC"]
[PlyCount "40"]
[EventDate "2023.12.14"]
[EventType "schev"]
[EventCountry "USA"]
[SourceTitle "playchess.com"]
[Source "ChessBase"]
[SourceQuality "1"]
[TimeControl "5400+30"]

1. d4 {[%emt 0:00:01]} d5 {[%emt 0:07:55]} 2. c4 {[%emt 0:00:23]} dxc4 {[%emt 0:00:02]} 3. Nf3 {[%emt 0:00:16]} Nf6 {[%emt 0:00:02]} 4. e3 {[%emt 0:00:06]} e6 {[%emt 0:00:05]} 5. Bxc4 {[%emt 0:00:13]} a6 {[%emt 0:00:10]} 6. a4 {[%emt 0:06:49]} c5 {[%emt 0:00:17]} 7. O-O {[%emt 0:01:24]} Be7 {[%emt 0:05:07]} 8. Qe2 {[%emt 0:02:26]} O-O {[%emt 0:01:43]} 9. Nc3 {[%emt 0:00:33]} cxd4 {[%emt 0:01:40]} 10. exd4 {[%emt 0:01:44]} Nc6 {[%emt 0:01:40]} 11. Rd1 {[%emt 0:01:26]} Bd7 {[%emt 0:04:29]} 12. Bg5 {[%emt 0:01:56]} Nb4 {[%emt 0:05:10]} 13. Ne5 {[%emt 0:01:02]} Be8 {[%emt 0:01:05]} 14. Bb3 {[%emt 0:12:24]} Rc8 {[%emt 0:10:26]} 15. h3 {[%emt 0:02:05]} Nfd5 {[%emt 0:14:51]} 16. Bxe7 {[%emt 0:02:35]} Nxe7 {[%emt 0:00:40]} 17. Qd2 {[%emt 0:04:00]} Bc6 {[%emt 0:15:17]} 18. Nxc6 {[%emt 0:02:35]} Rxc6 {[%emt 0:01:36]} 19. d5 {[%emt 0:03:02]} exd5 {[%emt 0:01:44]} 20. Nxd5 {[%emt 0:00:44]} Nbxd5 {[%emt 0:26:31]} 1/2-1/2

[Event "1000GM Winter IM Norm-2 2024"]
[Site "Sunnyvale/"]
[Date "2024.01.03"]
[Round "2.9"]
[White "Arenas, David"]
[Black "Sivakumar, Shaashwath"]
[Result "1/2-1/2"]
[ECO "B92"]
[WhiteElo "2406"]
[BlackElo "2205"]
[Annotator "RC"]
[PlyCount "44"]
[EventDate "2023.12.14"]
[EventType "schev"]
[EventCountry "USA"]
[SourceTitle "playchess.com"]
[Source "ChessBase"]
[SourceQuality "1"]
[TimeControl "5400+30"]

1. e4 {[%emt 0:07:07]} c5 {[%emt 0:00:09]} 2. Nf3 {[%emt 0:00:32]} d6 {[%emt 0:00:04]} 3. Nc3 {[%emt 0:00:27]} a6 {[%emt 0:00:07]} 4. d4 {[%emt 0:00:16]} cxd4 {[%emt 0:00:04]} 5. Nxd4 {[%emt 0:00:03]} Nf6 {[%emt 0:00:12]} 6. Be2 {[%emt 0:00:12]} e5 {[%emt 0:00:06]} 7. Nb3 {[%emt 0:00:05]} Be7 {[%emt 0:00:04]} 8. O-O {[%emt 0:00:07]} O-O {[%emt 0:00:08]} 9. Re1 {[%emt 0:01:39]} Be6 {[%emt 0:00:50]} 10. Bf3 {[%emt 0:00:50]} Nbd7 {[%emt 0:00:40]} 11. a4 {[%emt 0:00:33]} Qb8 {[%emt 0:02:07]} 12. Nd2 {[%emt 0:03:27]} Rc8 {[%emt 0:01:25]} 13. Nf1 {[%emt 0:00:12]} Bd8 {[%emt 0:00:03]} 14. a5 {[%emt 0:02:20]} b5 {[%emt 0:01:58]} 15. axb6 {[%emt 0:04:32]} Bxb6 {[%emt 0:00:15]} 16. Ne3 {[%emt 0:00:42]} Bd4 {[%emt 0:27:54]} 17. Ncd5 {[%emt 0:06:46]} Bxd5 {[%emt 0:00:07]} 18. exd5 {[%emt 0:00:07]} Qb6 {[%emt 0:02:01]} 19. Ra2 {[%emt 0:01:57]} a5 {[%emt 0:00:27]} 20. c3 {[%emt 0:01:06]} Bc5 {[%emt 0:04:23]} 21. Qa4 {[%emt 1:08:00]} Ra7 {[%emt 0:57:56]} 22. b3 {[%emt 0:00:30]} Qd8 {[%emt 0:00:30]} 1/2-1/2

[Event "1000GM Winter IM Norm-2 2024"]
[Site "Sunnyvale/"]
[Date "2024.01.04"]
[Round "3.1"]
[White "Zhou, Ruoyu"]
[Black "Stopa, Jacek"]
[Result "0-1"]
[ECO "B03"]
[WhiteElo "2112"]
[BlackElo "2344"]
[Annotator "RC"]
[PlyCount "82"]
[EventDate "2023.12.14"]
[EventType "schev"]
[EventCountry "USA"]
[SourceTitle "playchess.com"]
[Source "ChessBase"]
[SourceQuality "1"]
[TimeControl "5400+30"]

1. e4 {[%emt 1:31:00]} Nf6 {[%emt 0:01:33]} 2. e5 {[%emt 0:00:00]} Nd5 {[%emt 0:00:04]} 3. c4 {[%emt 0:00:00]} Nb6 {[%emt 0:00:03]} 4. d4 {[%emt 0:00:00]} d6 {[%emt 0:00:06]} 5. exd6 {[%emt 0:00:00]} exd6 {[%emt 0:00:40]} 6. Nc3 {[%emt 0:00:00]} Be7 {[%emt 0:00:25]} 7. h3 {[%emt 0:00:00]} O-O {[%emt 0:00:25]} 8. Nf3 {[%emt 0:00:00]} Re8 {[%emt 0:01:46]} 9. Be2 {[%emt 0:00:00]} Bf5 {[%emt 0:02:28]} 10. O-O {[%emt 0:00:00]} Nc6 {[%emt 0:04:02]} 11. Bf4 {[%emt 0:00:00]} Bf6 {[%emt 0:03:12]} 12. Rc1 {[%emt 0:00:00]} h6 {[%emt 0:03:22]} 13. b3 {[%emt 0:00:00]} Bg6 {[%emt 0:09:16]} 14. Be3 {[%emt 0:00:00]} Ne7 {[%emt 0:02:54]} 15. Bd3 {[%emt 0:00:00]} Nf5 {[%emt 0:11:52]} 16. Bxf5 {[%emt 0:00:00]} Bxf5 {[%emt 0:00:02]} 17. d5 {[%emt 0:00:00]} Nd7 {[%emt 0:01:50]} 18. Qd2 {[%emt 0:00:00]} a6 {[%emt 0:00:25]} 19. Rfe1 {[%emt 0:00:00]} Bg6 {[%emt 0:03:24]} 20. Bf4 {[%emt 0:00:00]} Nc5 {[%emt 0:02:43]} 21. Rxe8+ {[%emt 0:00:00]} Qxe8 {[%emt 0:02:27]} 22. Be3 {[%emt 0:00:00]} Nd3 {[%emt 0:04:46]} 23. Rf1 {[%emt 0:00:00]} b5 {[%emt 0:04:54]} 24. cxb5 {[%emt 0:00:00]} axb5 {[%emt 0:00:38]} 25. a4 {[%emt 0:00:00]} bxa4 {[%emt 0:02:02]} 26. bxa4 {[%emt 0:00:00]} c5 {[%emt 0:05:52]} 27. dxc6 {[%emt 0:00:00]} Qxc6 {[%emt 0:00:02]} 28. Bd4 {[%emt 0:00:00]} Bd8 {[%emt 0:01:41]} 29. Qd1 {[%emt 0:04:09]} Nb2 {[%emt 0:13:52]} 30. Qb3 {[%emt 0:01:24]} Nxa4 {[%emt 0:01:45]} 31. Nxa4 {[%emt 0:00:39]} Rxa4 {[%emt 0:00:46]} 32. Qb8 {[%emt 0:01:33]} Ra8 {[%emt 0:00:43]} 33. Qb2 {[%emt 0:00:07]} f6 {[%emt 0:00:56]} 34. Rc1 {[%emt 0:01:31]} Qd5 {[%emt 0:00:31]} 35. Be3 {[%emt 0:01:05]} Be4 {[%emt 0:00:53]} 36. Ne1 {[%emt 0:02:39]} Ba5 {[%emt 0:01:11]} 37. f3 {[%emt 0:01:26]} Bg6 {[%emt 0:00:46]} 38. Qd4 {[%emt 0:01:40]} Qxd4 {[%emt 0:03:21]} 39. Bxd4 {[%emt 0:00:02]} Re8 {[%emt 0:00:06]} 40. Kf2 {[%emt 0:01:22]} Re7 {[%emt 0:00:51]} 41. Ra1 {[%emt 0:01:24]} Bb4 {[%emt 0:00:01]} 0-1

[Event "1000GM Winter IM Norm-2 2024"]
[Site "Sunnyvale/"]
[Date "2024.01.04"]
[Round "3.2"]
[White "Karthi, Jashith"]
[Black "Calderin Gonzalez, Roberto"]
[Result "0-1"]
[ECO "B06"]
[WhiteElo "2032"]
[BlackElo "2413"]
[Annotator "RC"]
[PlyCount "108"]
[EventDate "2023.12.14"]
[EventType "schev"]
[EventCountry "USA"]
[SourceTitle "playchess.com"]
[Source "ChessBase"]
[SourceQuality "1"]
[TimeControl "5400+30"]

1. d4 {[%emt 0:03:18]} g6 {[%emt 0:03:32]} 2. e4 {[%emt 0:00:15]} Bg7 {[%emt 0:00:01]} 3. Nf3 {[%emt 0:00:08]} d6 {[%emt 0:00:05]} 4. Bc4 {[%emt 0:00:04]} Nf6 {[%emt 0:00:08]} 5. Qe2 {[%emt 0:00:06]} c6 {[%emt 0:00:05]} 6. O-O {[%emt 0:01:00]} O-O {[%emt 0:00:33]} 7. Bb3 {[%emt 0:00:19]} a5 {[%emt 0:00:54]} 8. a4 {[%emt 0:00:22]} b6 {[%emt 0:00:05]} 9. Re1 {[%emt 0:02:11]} Ba6 {[%emt 0:00:13]} 10. Qd1 {[%emt 0:00:18]} c5 {[%emt 0:02:06]} 11. c3 {[%emt 0:00:18]} cxd4 {[%emt 0:00:14]} 12. cxd4 {[%emt 0:00:22]} Nc6 {[%emt 0:00:05]} 13. Bd2 {[%emt 0:01:30]} Rc8 {[%emt 0:02:30]} 14. Bc3 {[%emt 0:00:24]} d5 {[%emt 0:04:26]} 15. e5 {[%emt 0:04:17]} Ne4 {[%emt 0:00:08]} 16. Nbd2 {[%emt 0:00:41]} Nxc3 {[%emt 0:00:03]} 17. bxc3 {[%emt 0:00:03]} e6 {[%emt 0:00:00]} 18. Nf1 {[%emt 0:01:24]} Ne7 {[%emt 0:02:11]} 19. Qd2 {[%emt 0:00:36]} Nf5 {[%emt 0:00:41]} 20. Ne3 {[%emt 0:02:19]} Bh6 {[%emt 0:03:53]} 21. Qb2 {[%emt 0:00:29]} Nxe3 {[%emt 0:00:17]} 22. fxe3 {[%emt 0:00:03]} Rc6 {[%emt 0:01:26]} 23. Rac1 {[%emt 0:04:02]} Qc7 {[%emt 0:00:56]} 24. Nd2 {[%emt 0:00:52]} Rc8 {[%emt 0:03:30]} 25. Nb1 {[%emt 0:00:23]} Bd3 {[%emt 0:00:37]} 26. Bc2 {[%emt 0:00:59]} Bxc2 {[%emt 0:00:06]} 27. Rxc2 {[%emt 0:01:29]} Rc4 {[%emt 0:00:13]} 28. Qb5 {[%emt 0:01:55]} Rb4 {[%emt 0:03:13]} 29. Qa6 {[%emt 0:07:11]} Rxa4 {[%emt 0:00:14]} 30. Rb2 {[%emt 0:01:15]} Rb8 {[%emt 0:01:34]} 31. Kf2 {[%emt 0:08:47]} Ra1 {[%emt 0:04:16]} 32. Ree2 {[%emt 0:02:01]} f6 {[%emt 0:06:10]} 33. Nd2 {[%emt 0:07:51]} fxe5 {[%emt 0:01:42]} 34. dxe5 {[%emt 0:00:19]} Qxe5 {[%emt 0:01:41]} 35. Nf3 {[%emt 0:00:19]} Qc7 {[%emt 0:05:12]} 36. Ra2 {[%emt 0:02:01]} Rxa2 {[%emt 0:02:06]} 37. Rxa2 {[%emt 0:00:17]} Qxc3 {[%emt 0:01:00]} 38. Re2 {[%emt 0:00:13]} Qc5 {[%emt 0:00:24]} 39. Qa7 {[%emt 0:00:23]} Rc8 {[%emt 0:01:34]} 40. Qd7 {[%emt 0:00:27]} Qc6 {[%emt 0:00:05]} 41. Qe7 {[%emt 0:00:16]} Re8 {[%emt 0:00:24]} 42. Qf6 {[%emt 0:00:22]} Bg7 {[%emt 0:00:34]} 43. Qh4 {[%emt 0:00:20]} Rf8 {[%emt 0:00:07]} 44. h3 {[%emt 0:00:23]} e5 {[%emt 0:00:19]} 45. Kg1 {[%emt 0:00:26]} e4 {[%emt 0:00:17]} 46. Nd4 {[%emt 0:00:29]} Bxd4 {[%emt 0:00:57]} 47. exd4 {[%emt 0:00:08]} Qc1+ {[%emt 0:01:06]} 48. Re1 {[%emt 0:00:11]} Qf4 {[%emt 0:00:06]} 49. Qxf4 {[%emt 0:00:15]} Rxf4 {[%emt 0:00:05]} 50. Re3 {[%emt 0:00:17]} a4 {[%emt 0:00:25]} 51. Ra3 {[%emt 0:00:09]} b5 {[%emt 0:00:02]} 52. Kh2 {[%emt 0:00:09]} Rf7 {[%emt 0:00:54]} 53. Kg3 {[%emt 0:00:10]} Ra7 {[%emt 0:00:06]} 54. Kf4 {[%emt 0:00:05]} b4 {[%emt 0:00:04]} 0-1

[Event "1000GM Winter IM Norm-2 2024"]
[Site "Sunnyvale/"]
[Date "2024.01.04"]
[Round "3.3"]
[White "Goktepe, Derin"]
[Black "Zuluaga Mancilla, Cesar"]
[Result "1/2-1/2"]
[ECO "D10"]
[WhiteElo "2187"]
[BlackElo "2251"]
[Annotator "RC"]
[PlyCount "107"]
[EventDate "2023.12.14"]
[EventType "schev"]
[EventCountry "USA"]
[SourceTitle "playchess.com"]
[Source "ChessBase"]
[SourceQuality "1"]
[TimeControl "5400+30"]

1. d4 {[%emt 0:00:02]} d5 {[%emt 0:05:17]} 2. c4 {[%emt 0:00:17]} c6 {[%emt 0:00:06]} 3. Nc3 {[%emt 1:31:41]} Nf6 {[%emt 0:04:39]} 4. cxd5 {[%emt 0:00:00]} cxd5 {[%emt 0:00:13]} 5. Bf4 {[%emt 0:00:00]} Nc6 {[%emt 0:00:34]} 6. e3 {[%emt 0:00:00]} a6 {[%emt 0:00:07]} 7. Be2 {[%emt 0:00:00]} e6 {[%emt 0:04:12]} 8. Rc1 {[%emt 0:00:00]} Be7 {[%emt 0:00:52]} 9. Nf3 {[%emt 0:00:00]} O-O {[%emt 0:02:34]} 10. Ne5 {[%emt 0:00:00]} Bd7 {[%emt 0:02:44]} 11. O-O {[%emt 0:00:00]} Nxe5 {[%emt 0:01:31]} 12. Bxe5 {[%emt 0:00:00]} Qb6 {[%emt 0:02:10]} 13. Qb3 {[%emt 0:00:00]} Qxb3 {[%emt 0:03:25]} 14. axb3 {[%emt 0:00:00]} b5 {[%emt 0:03:53]} 15. Bd3 {[%emt 0:00:00]} Rfc8 {[%emt 0:00:16]} 16. f3 {[%emt 0:00:00]} Bc6 {[%emt 0:02:43]} 17. Rc2 {[%emt 0:00:00]} Nd7 {[%emt 0:03:13]} 18. Bg3 {[%emt 0:00:00]} b4 {[%emt 0:09:46]} 19. Ne2 {[%emt 0:00:00]} Bb7 {[%emt 0:02:48]} 20. Rfc1 {[%emt 0:00:00]} Rxc2 {[%emt 0:00:16]} 21. Rxc2 {[%emt 0:00:00]} Rc8 {[%emt 0:00:06]} 22. Rc7 {[%emt 0:00:00]} Rxc7 {[%emt 0:00:28]} 23. Bxc7 {[%emt 0:00:00]} h6 {[%emt 0:04:51]} 24. Kf2 {[%emt 0:00:00]} Kf8 {[%emt 0:00:07]} 25. Nc1 {[%emt 0:00:00]} Ke8 {[%emt 0:05:49]} 26. Na2 {[%emt 0:00:00]} Bc8 {[%emt 0:03:52]} 27. Ba5 {[%emt 0:00:00]} Nb8 {[%emt 0:00:15]} 28. Bxb4 {[%emt 0:00:00]} Bd7 {[%emt 0:07:34]} 29. Ke2 {[%emt 0:00:00]} Bxb4 {[%emt 0:02:04]} 30. Nxb4 {[%emt 0:00:00]} a5 {[%emt 0:00:01]} 31. Nc2 {[%emt 0:00:00]} Nc6 {[%emt 0:01:52]} 32. Kd2 {[%emt 0:00:00]} Nb4 {[%emt 0:00:37]} 33. Kc3 {[%emt 0:00:00]} Na2+ {[%emt 0:01:05]} 34. Kd2 {[%emt 0:00:00]} Nb4 {[%emt 0:00:01]} 35. Be2 {[%emt 0:00:00]} Kd8 {[%emt 0:00:34]} 36. Na3 {[%emt 0:01:00]} Kc7 {[%emt 0:01:32]} 37. Nb1 {[%emt 0:01:52]} Kb6 {[%emt 0:00:38]} 38. Nc3 {[%emt 0:00:24]} Bc6 {[%emt 0:00:09]} 39. Na4+ {[%emt 0:00:36]} Bxa4 {[%emt 0:00:30]} 40. bxa4 {[%emt 0:00:04]} f6 {[%emt 0:00:21]} 41. Bb5 {[%emt 0:01:05]} Kc7 {[%emt 0:00:38]} 42. f4 {[%emt 0:02:33]} Kd6 {[%emt 0:01:18]} 43. g4 {[%emt 0:01:00]} g5 {[%emt 0:01:42]} 44. fxg5 {[%emt 0:00:45]} hxg5 {[%emt 0:02:13]} 45. Bf1 {[%emt 0:00:47]} e5 {[%emt 0:00:14]} 46. Bg2 {[%emt 0:00:36]} e4 {[%emt 0:01:27]} 47. Bf1 {[%emt 0:00:19]} Ke6 {[%emt 0:00:12]} 48. Bb5 {[%emt 0:00:30]} Kd6 {[%emt 0:03:19]} 49. Kc3 {[%emt 0:00:23]} Ke6 {[%emt 0:00:30]} 50. Kd2 {[%emt 0:00:27]} Ke7 {[%emt 0:04:19]} 51. Kc3 {[%emt 0:00:30]} Ke6 {[%emt 0:00:16]} 52. Kd2 {[%emt 0:00:36]} Ke7 {[%emt 0:01:12]} 53. Kc3 {[%emt 0:00:12]} Na2+ {[%emt 0:00:49]} 54. Kb3 {[%emt 0:00:18]} 1/2-1/2

[Event "1000GM Winter IM Norm-2 2024"]
[Site "Sunnyvale/"]
[Date "2024.01.04"]
[Round "3.4"]
[White "Atwell, Rose"]
[Black "Hajnal, Zoltan"]
[Result "1-0"]
[ECO "C70"]
[WhiteElo "2104"]
[BlackElo "2383"]
[Annotator "RC"]
[PlyCount "63"]
[EventDate "2023.12.14"]
[EventType "schev"]
[EventCountry "USA"]
[SourceTitle "playchess.com"]
[Source "ChessBase"]
[SourceQuality "1"]
[TimeControl "5400+30"]

1. e4 {[%emt 0:00:01]} e5 {[%emt 0:00:36]} 2. Nf3 {[%emt 0:00:07]} Nc6 {[%emt 0:00:06]} 3. Bb5 {[%emt 0:00:06]} a6 {[%emt 0:00:05]} 4. Ba4 {[%emt 0:00:06]} d6 {[%emt 0:00:03]} 5. O-O {[%emt 0:00:25]} b5 {[%emt 0:00:50]} 6. Bb3 {[%emt 0:00:06]} Na5 {[%emt 0:00:03]} 7. d4 {[%emt 0:00:47]} exd4 {[%emt 0:00:06]} 8. Nxd4 {[%emt 0:00:07]} Bb7 {[%emt 0:00:15]} 9. Bd2 {[%emt 0:04:39]} Nxb3 {[%emt 0:01:53]} 10. Nxb3 {[%emt 0:05:09]} c6 {[%emt 0:04:23]} 11. Re1 {[%emt 0:11:03]} Be7 {[%emt 0:08:32]} 12. e5 {[%emt 0:04:36]} dxe5 {[%emt 0:10:58]} 13. Rxe5 {[%emt 0:02:17]} Kf8 {[%emt 0:10:10]} 14. Qe1 {[%emt 0:05:09]} Bd6 {[%emt 0:05:27]} 15. Bb4 {[%emt 0:05:22]} Nf6 {[%emt 0:00:50]} 16. Bxd6+ {[%emt 0:05:29]} Qxd6 {[%emt 0:00:21]} 17. f3 {[%emt 0:02:31]} Bc8 {[%emt 0:22:55]} 18. Nc3 {[%emt 0:12:29]} Be6 {[%emt 0:00:29]} 19. Rd1 {[%emt 0:00:21]} Bd5 {[%emt 0:01:44]} 20. Qg3 {[%emt 0:04:08]} h5 {[%emt 0:04:23]} 21. Nxd5 {[%emt 0:06:30]} cxd5 {[%emt 0:00:40]} 22. Rde1 {[%emt 0:02:25]} Rh6 {[%emt 0:03:32]} 23. Nd4 {[%emt 0:04:07]} Rg6 {[%emt 0:01:14]} 24. Qf4 {[%emt 0:01:18]} b4 {[%emt 0:03:13]} 25. Qe3 {[%emt 0:02:12]} a5 {[%emt 0:07:08]} 26. Nf5 {[%emt 0:03:01]} d4 {[%emt 0:03:49]} 27. Nxd4 {[%emt 0:01:59]} Qc7 {[%emt 0:02:18]} 28. c3 {[%emt 0:06:13]} bxc3 {[%emt 0:00:29]} 29. bxc3 {[%emt 0:00:25]} h4 {[%emt 0:05:20]} 30. h3 {[%emt 0:02:51]} Qd7 {[%emt 0:02:50]} 31. Nf5 {[%emt 0:00:41]} Ne8 {[%emt 0:00:36]} 32. Qc5+ {[%emt 0:02:48]} 1-0

[Event "1000GM Winter IM Norm-2 2024"]
[Site "Sunnyvale/"]
[Date "2024.01.04"]
[Round "3.5"]
[White "Rodi, Luis Ernesto"]
[Black "Sivakumar, Shaaketh"]
[Result "0-1"]
[ECO "C18"]
[WhiteElo "2196"]
[BlackElo "2364"]
[Annotator "RC"]
[PlyCount "108"]
[EventDate "2023.12.14"]
[EventType "schev"]
[EventCountry "USA"]
[SourceTitle "playchess.com"]
[Source "ChessBase"]
[SourceQuality "1"]
[TimeControl "5400+30"]

1. e4 {[%emt 0:02:30]} e6 {[%emt 0:00:08]} 2. d4 {[%emt 0:00:06]} d5 {[%emt 0:00:09]} 3. Nc3 {[%emt 0:00:58]} Bb4 {[%emt 0:00:10]} 4. e5 {[%emt 0:00:14]} Ne7 {[%emt 0:00:08]} 5. a3 {[%emt 0:00:07]} Bxc3+ {[%emt 0:00:07]} 6. bxc3 {[%emt 0:00:04]} c5 {[%emt 0:00:09]} 7. Qg4 {[%emt 0:00:21]} Kf8 {[%emt 0:00:08]} 8. Qd1 {[%emt 0:00:31]} Qc7 {[%emt 0:01:30]} 9. Nf3 {[%emt 0:02:20]} b6 {[%emt 0:02:26]} 10. a4 {[%emt 0:01:34]} Nd7 {[%emt 0:01:59]} 11. Bd3 {[%emt 0:01:27]} a5 {[%emt 0:03:03]} 12. h4 {[%emt 0:01:52]} Ba6 {[%emt 0:00:34]} 13. Bxa6 {[%emt 0:03:21]} Rxa6 {[%emt 0:00:04]} 14. h5 {[%emt 0:00:09]} h6 {[%emt 0:00:30]} 15. g4 {[%emt 0:02:44]} Ra8 {[%emt 0:01:34]} 16. Bd2 {[%emt 0:13:01]} Rc8 {[%emt 0:00:22]} 17. Ra2 {[%emt 0:00:28]} Nc6 {[%emt 0:04:05]} 18. O-O {[%emt 0:00:48]} Ke7 {[%emt 0:03:41]} 19. Qe2 {[%emt 0:00:18]} cxd4 {[%emt 0:05:08]} 20. cxd4 {[%emt 0:02:12]} Nb4 {[%emt 0:05:29]} 21. Rb2 {[%emt 0:07:55]} Qc4 {[%emt 0:03:24]} 22. Qe3 {[%emt 0:06:20]} Nxc2 {[%emt 0:04:47]} 23. Qf4 {[%emt 0:04:29]} Qd3 {[%emt 0:01:39]} 24. Be3 {[%emt 0:03:42]} Nxe3 {[%emt 0:04:29]} 25. fxe3 Rc3 {[%emt 0:00:08]} 26. Re1 {[%emt 0:03:06]} Rhc8 {[%emt 0:01:57]} 27. Rf2 {[%emt 0:01:11]} Rc2 {[%emt 0:02:55]} 28. Ref1 {[%emt 0:00:13]} Rxf2 {[%emt 0:00:08]} 29. Rxf2 {[%emt 0:00:05]} Rc1+ {[%emt 0:04:44]} 30. Kg2 {[%emt 0:00:11]} Rc3 {[%emt 0:01:05]} 31. Nd2 {[%emt 0:01:59]} f6 {[%emt 0:01:34]} 32. exf6+ {[%emt 0:00:10]} Nxf6 {[%emt 0:00:10]} 33. g5 {[%emt 0:00:19]} hxg5 {[%emt 0:02:02]} 34. Qxg5 {[%emt 0:00:09]} Kf7 {[%emt 0:00:24]} 35. Nf3 {[%emt 0:04:55]} Qxe3 {[%emt 0:02:13]} 36. Ne5+ {[%emt 0:00:41]} Kg8 {[%emt 0:00:19]} 37. Qxe3 {[%emt 0:02:30]} Rxe3 {[%emt 0:00:01]} 38. h6 {[%emt 0:00:09]} Re4 {[%emt 0:01:24]} 39. Rb2 {[%emt 0:00:53]} Ng4 {[%emt 0:01:26]} 40. Nc6 {[%emt 0:08:44]} Nxh6 {[%emt 0:02:01]} 41. Rxb6 {[%emt 0:00:09]} Nf5 {[%emt 0:00:11]} 42. Nxa5 {[%emt 0:01:24]} Nxd4 {[%emt 0:04:32]} 43. Nb7 {[%emt 0:00:26]} Re2+ {[%emt 0:00:12]} 44. Kh3 {[%emt 0:00:15]} Re3+ {[%emt 0:02:20]} 45. Kg2 {[%emt 0:00:19]} Kf7 {[%emt 0:02:22]} 46. a5 {[%emt 0:00:12]} Re2+ {[%emt 0:00:12]} 47. Kh3 {[%emt 0:00:14]} Ra2 {[%emt 0:02:13]} 48. a6 {[%emt 0:00:15]} Kf6 {[%emt 0:01:26]} 49. Nc5 {[%emt 0:00:45]} Ra5 {[%emt 0:01:04]} 50. Nd7+ {[%emt 0:00:41]} Kf5 {[%emt 0:00:25]} 51. Nb8 {[%emt 0:01:33]} g5 {[%emt 0:02:16]} 52. Rb7 {[%emt 0:01:04]} Kf4 {[%emt 0:00:47]} 53. Rf7+ {[%emt 0:00:13]} Nf5 {[%emt 0:00:11]} 54. a7 {[%emt 0:00:05]} Ra2 {[%emt 0:00:07]} 0-1